[Event "Titled Tuesday Blitz April 25 Late 2023"]
[White "Chylewski, Patryk"]
[Black "Rustemov, Alexander"]
[WhiteFideId "1186191"]
[BlackFideId "4119002"]
[WhiteElo "2163"]
[BlackElo "2525"]
[Result "0-1"]
[Round "05"]
[TimeControl "180+2"]
[Date "2023.04.25"]
[WhiteClock "0:00:02"]
[BlackClock "0:00:30"]

1. e4 {[%clk 0:02:59]}  e6 {[%clk 0:02:57]} 2. d4 {[%clk 0:02:59]}  d5 {[%clk 0:02:56]} 3. Nd2 {[%clk 0:03:00]}  dxe4 {[%clk 0:02:56]} 4. Nxe4 {[%clk 0:03:00]}  Bd7 {[%clk 0:02:56]} 5. Nf3 {[%clk 0:02:57]}  Bc6 {[%clk 0:02:57]} 6. Bd3 {[%clk 0:02:57]}  Nd7 {[%clk 0:02:57]} 7. O-O {[%clk 0:02:56]}  Ngf6 {[%clk 0:02:58]} 8. Ng3 {[%clk 0:02:56]}  Be7 {[%clk 0:02:58]} 9. Re1 {[%clk 0:02:55]}  O-O {[%clk 0:02:57]} 10. c3 {[%clk 0:02:53]}  b6 {[%clk 0:02:57]} 11. Qe2 {[%clk 0:02:51]}  Bb7 {[%clk 0:02:57]} 12. Bd2 {[%clk 0:02:49]}  c5 {[%clk 0:02:57]} 13. Rad1 {[%clk 0:02:47]}  Bxf3 {[%clk 0:02:52]} 14. Qxf3 {[%clk 0:02:48]}  cxd4 {[%clk 0:02:52]} 15. cxd4 {[%clk 0:02:49]}  Nd5 {[%clk 0:02:48]} 16. a3 {[%clk 0:02:45]}  N7f6 {[%clk 0:02:47]} 17. Ne4 {[%clk 0:02:42]}  Rc8 {[%clk 0:02:44]} 18. h3 {[%clk 0:02:32]}  Qd7 {[%clk 0:02:43]} 19. Ba6 {[%clk 0:02:29]}  Rc7 {[%clk 0:02:29]} 20. Nxf6+ {[%clk 0:02:25]}  Bxf6 {[%clk 0:02:26]} 21. Qd3 {[%clk 0:02:25]}  Rd8 {[%clk 0:02:20]} 22. Bb5 {[%clk 0:02:24]}  Qd6 {[%clk 0:02:19]} 23. Be3 {[%clk 0:02:11]}  g6 {[%clk 0:02:19]} 24. Rc1 {[%clk 0:02:10]}  Ne7 {[%clk 0:02:12]} 25. Rxc7 {[%clk 0:02:07]}  Qxc7 {[%clk 0:02:13]} 26. Rc1 {[%clk 0:02:07]}  Qd6 {[%clk 0:02:13]} 27. g4 {[%clk 0:01:46]}  Nd5 {[%clk 0:01:59]} 28. Rc6 {[%clk 0:01:30]}  Qe7 {[%clk 0:01:56]} 29. Qe4 {[%clk 0:01:13]}  Kg7 {[%clk 0:01:46]} 30. Kg2 {[%clk 0:01:08]}  h6 {[%clk 0:01:41]} 31. Kg1 {[%clk 0:01:05]}  Qb7 {[%clk 0:01:37]} 32. Rc1 {[%clk 0:00:58]}  a6 {[%clk 0:01:33]} 33. Bd3 {[%clk 0:00:52]}  b5 {[%clk 0:01:31]} 34. Rc5 {[%clk 0:00:43]}  Qd7 {[%clk 0:01:31]} 35. Be2 {[%clk 0:00:39]}  Ne7 {[%clk 0:01:30]} 36. Qf4 {[%clk 0:00:21]}  g5 {[%clk 0:01:25]} 37. Qe4 {[%clk 0:00:20]}  Bxd4 {[%clk 0:01:23]} 38. Rc2 {[%clk 0:00:05]}  Bxe3 {[%clk 0:01:20]} 39. Qxe3 {[%clk 0:00:05]}  Qd4 {[%clk 0:01:17]} 40. Qxd4+ {[%clk 0:00:05]}  Rxd4 {[%clk 0:01:17]} 41. Rc7 {[%clk 0:00:05]}  Nd5 {[%clk 0:01:09]} 42. Ra7 {[%clk 0:00:05]}  Nf4 {[%clk 0:01:10]} 43. Bf1 {[%clk 0:00:03]}  Rd6 {[%clk 0:01:07]} 44. b4 {[%clk 0:00:03]}  Rb6 {[%clk 0:00:57]} 45. Kh2 {[%clk 0:00:02]}  Kg6 {[%clk 0:00:56]} 46. Kg3 {[%clk 0:00:03]}  Rc6 {[%clk 0:00:50]} 47. f3 {[%clk 0:00:02]}  Rc1 {[%clk 0:00:47]} 48. Kf2 {[%clk 0:00:02]}  Rc2+ {[%clk 0:00:43]} 49. Kg3 {[%clk 0:00:01]}  Rc6 {[%clk 0:00:39]} 50. a4 {[%clk 0:00:02]}  Rc1 {[%clk 0:00:31]} 51. Kf2 {[%clk 0:00:01]}  Rc2+ {[%clk 0:00:31]} 52. Kg3 {[%clk 0:00:01]}  Rb2 {[%clk 0:00:31]} 53. axb5 {[%clk 0:00:01]}  axb5 {[%clk 0:00:31]} 54. Bxb5 {[%clk 0:00:02]}  Rg2# {[%clk 0:00:30]} 0-1


[Site "https://www.chess.com"]

[Event "Titled Tuesday Blitz April 25 Late 2023"]
[White "Koc, Przemyslaw"]
[Black "Bryakin, Mikhail"]
[WhiteFideId "1109081"]
[BlackFideId "4165314"]
[WhiteElo "2161"]
[BlackElo "2447"]
[Result "0-1"]
[Round "05"]
[TimeControl "180+2"]
[Date "2023.04.25"]
[WhiteClock "0:01:01"]
[BlackClock "0:01:37"]

1. Nf3 {[%clk 0:03:00]}  e6 {[%clk 0:02:57]} 2. g3 {[%clk 0:02:58]}  b5 {[%clk 0:02:58]} 3. Bg2 {[%clk 0:02:59]}  Bb7 {[%clk 0:02:58]} 4. O-O {[%clk 0:02:59]}  Nf6 {[%clk 0:02:56]} 5. d3 {[%clk 0:02:59]}  c5 {[%clk 0:02:55]} 6. e4 {[%clk 0:02:58]}  Be7 {[%clk 0:02:56]} 7. a4 {[%clk 0:02:57]}  b4 {[%clk 0:02:55]} 8. b3 {[%clk 0:02:51]}  a5 {[%clk 0:02:55]} 9. e5 {[%clk 0:02:49]}  Nd5 {[%clk 0:02:55]} 10. Bb2 {[%clk 0:02:49]}  Nc6 {[%clk 0:02:53]} 11. Nbd2 {[%clk 0:02:49]}  O-O {[%clk 0:02:49]} 12. Nc4 {[%clk 0:02:48]}  f5 {[%clk 0:02:50]} 13. exf6 {[%clk 0:02:45]}  Bxf6 {[%clk 0:02:50]} 14. Bxf6 {[%clk 0:02:43]}  Qxf6 {[%clk 0:02:50]} 15. Qe1 {[%clk 0:02:27]}  Qe7 {[%clk 0:02:33]} 16. Nfe5 {[%clk 0:02:22]}  Nd4 {[%clk 0:02:27]} 17. Qd2 {[%clk 0:02:12]}  d6 {[%clk 0:02:25]} 18. Ng4 {[%clk 0:02:08]}  e5 {[%clk 0:02:24]} 19. Nge3 {[%clk 0:02:01]}  Nc3 {[%clk 0:02:20]} 20. f4 {[%clk 0:01:35]}  exf4 {[%clk 0:02:14]} 21. Rxf4 {[%clk 0:01:34]}  Rxf4 {[%clk 0:02:14]} 22. gxf4 {[%clk 0:01:34]}  Nce2+ {[%clk 0:02:07]} 23. Kh1 {[%clk 0:01:32]}  Nxf4 {[%clk 0:02:07]} 24. Rg1 {[%clk 0:01:14]}  Nxg2 {[%clk 0:01:54]} 25. Rxg2 {[%clk 0:01:10]}  Rf8 {[%clk 0:01:50]} 26. Nxa5 {[%clk 0:01:01]}  Bxg2+ {[%clk 0:01:38]} 27. Qxg2 {[%clk 0:01:01]}  Qxe3 {[%clk 0:01:37]} 0-1


[Site "https://www.chess.com"]

[Event "Titled Tuesday Blitz April 25 Late 2023"]
[White "Papasimakopoulos, Alexandros"]
[Black "Kovalevsky, Stanislav"]
[WhiteFideId "4244125"]
[BlackFideId "13508598"]
[WhiteElo "2359"]
[BlackElo "2174"]
[Result "1-0"]
[Round "05"]
[TimeControl "180+2"]
[Date "2023.04.25"]
[WhiteClock "0:02:17"]
[BlackClock "0:01:27"]

1. d4 {[%clk 0:03:00]}  d5 {[%clk 0:02:59]} 2. c4 {[%clk 0:03:00]}  c6 {[%clk 0:02:59]} 3. cxd5 {[%clk 0:03:00]}  cxd5 {[%clk 0:02:59]} 4. Bf4 {[%clk 0:03:00]}  Nc6 {[%clk 0:02:56]} 5. e3 {[%clk 0:03:00]}  e6 {[%clk 0:02:50]} 6. Nc3 {[%clk 0:03:00]}  Bd6 {[%clk 0:02:50]} 7. Bxd6 {[%clk 0:03:01]}  Qxd6 {[%clk 0:02:50]} 8. Bd3 {[%clk 0:03:01]}  Nf6 {[%clk 0:02:47]} 9. f4 {[%clk 0:03:00]}  a6 {[%clk 0:02:45]} 10. Nf3 {[%clk 0:02:56]}  Bd7 {[%clk 0:02:41]} 11. O-O {[%clk 0:02:56]}  O-O {[%clk 0:02:38]} 12. Ne5 {[%clk 0:02:56]}  Rfc8 {[%clk 0:02:34]} 13. g4 {[%clk 0:02:55]}  Ne8 {[%clk 0:02:25]} 14. g5 {[%clk 0:02:55]}  Nxe5 {[%clk 0:02:08]} 15. fxe5 {[%clk 0:02:45]}  Qe7 {[%clk 0:01:57]} 16. h4 {[%clk 0:02:45]}  b5 {[%clk 0:01:54]} 17. a3 {[%clk 0:02:41]}  b4 {[%clk 0:01:50]} 18. axb4 {[%clk 0:02:40]}  Qxb4 {[%clk 0:01:50]} 19. Bxh7+ {[%clk 0:02:35]}  Kxh7 {[%clk 0:01:38]} 20. Qh5+ {[%clk 0:02:33]}  Kg8 {[%clk 0:01:39]} 21. Qxf7+ {[%clk 0:02:34]}  Kh8 {[%clk 0:01:39]} 22. Qh5+ {[%clk 0:02:26]}  Kg8 {[%clk 0:01:39]} 23. g6 {[%clk 0:02:25]}  Nf6 {[%clk 0:01:33]} 24. Rxf6 {[%clk 0:02:18]}  gxf6 {[%clk 0:01:28]} 25. Qh7+ {[%clk 0:02:16]}  Kf8 {[%clk 0:01:27]} 26. Qf7# {[%clk 0:02:17]} 1-0


[Site "https://www.chess.com"]

[Event "Titled Tuesday Blitz April 25 Late 2023"]
[White "Indjic, Aleksandar"]
[Black "Ezat, Mohamed"]
[WhiteFideId "911925"]
[BlackFideId "10600906"]
[WhiteElo "2614"]
[BlackElo "2386"]
[Result "0-1"]
[Round "05"]
[TimeControl "180+2"]
[Date "2023.04.25"]
[WhiteClock "0:00:10"]
[BlackClock "0:00:13"]

1. c4 {[%clk 0:02:27]}  Nf6 {[%clk 0:02:59]} 2. Nc3 {[%clk 0:02:23]}  g6 {[%clk 0:02:55]} 3. d4 {[%clk 0:02:20]}  Bg7 {[%clk 0:02:54]} 4. e4 {[%clk 0:02:20]}  d6 {[%clk 0:02:55]} 5. Be2 {[%clk 0:02:18]}  O-O {[%clk 0:02:55]} 6. Be3 {[%clk 0:02:16]}  c5 {[%clk 0:02:54]} 7. d5 {[%clk 0:02:16]}  a6 {[%clk 0:02:54]} 8. a4 {[%clk 0:02:14]}  e6 {[%clk 0:02:54]} 9. Nf3 {[%clk 0:02:14]}  exd5 {[%clk 0:02:54]} 10. cxd5 {[%clk 0:02:15]}  Re8 {[%clk 0:02:54]} 11. Nd2 {[%clk 0:02:15]}  Nbd7 {[%clk 0:02:49]} 12. O-O {[%clk 0:02:14]}  Qc7 {[%clk 0:02:45]} 13. h3 {[%clk 0:02:12]}  b6 {[%clk 0:02:45]} 14. Bf4 {[%clk 0:02:06]}  Ne5 {[%clk 0:02:38]} 15. Bh2 {[%clk 0:02:06]}  Bb7 {[%clk 0:02:29]} 16. f4 {[%clk 0:01:54]}  Ned7 {[%clk 0:02:28]} 17. Bc4 {[%clk 0:01:54]}  Re7 {[%clk 0:02:07]} 18. g4 {[%clk 0:01:50]}  Rae8 {[%clk 0:02:06]} 19. Qf3 {[%clk 0:01:49]}  h6 {[%clk 0:01:35]} 20. Bg3 {[%clk 0:01:43]}  Nh7 {[%clk 0:01:33]} 21. e5 {[%clk 0:01:13]}  dxe5 {[%clk 0:01:31]} 22. Nde4 {[%clk 0:01:02]}  Qb8 {[%clk 0:00:53]} 23. d6 {[%clk 0:01:01]}  Re6 {[%clk 0:00:48]} 24. Bxe6 {[%clk 0:01:00]}  Rxe6 {[%clk 0:00:48]} 25. f5 {[%clk 0:00:59]}  Ng5 {[%clk 0:00:33]} 26. Nxg5 {[%clk 0:00:57]}  hxg5 {[%clk 0:00:30]} 27. fxe6 {[%clk 0:00:46]}  Bxf3 {[%clk 0:00:30]} 28. exf7+ {[%clk 0:00:46]}  Kxf7 {[%clk 0:00:29]} 29. Rxf3+ {[%clk 0:00:46]}  Ke6 {[%clk 0:00:29]} 30. Ne4 {[%clk 0:00:45]}  Bf6 {[%clk 0:00:27]} 31. Rd1 {[%clk 0:00:44]}  Qb7 {[%clk 0:00:24]} 32. Rxf6+ {[%clk 0:00:42]}  Nxf6 {[%clk 0:00:23]} 33. Nxf6 {[%clk 0:00:41]}  Qf3 {[%clk 0:00:22]} 34. Rd2 {[%clk 0:00:10]}  Qe3+ {[%clk 0:00:20]} 35. Rf2 {[%clk 0:00:08]}  Qxg3+ {[%clk 0:00:20]} 36. Kf1 {[%clk 0:00:07]}  Qd3+ {[%clk 0:00:19]} 37. Kg2 {[%clk 0:00:08]}  Kxd6 {[%clk 0:00:16]} 38. Rf3 {[%clk 0:00:07]}  Qc2+ {[%clk 0:00:13]} 39. Rf2 {[%clk 0:00:08]}  Qb1 {[%clk 0:00:12]} 40. Rd2+ {[%clk 0:00:07]}  Ke6 {[%clk 0:00:13]} 41. Nd5 {[%clk 0:00:07]}  Qe4+ {[%clk 0:00:12]} 42. Kf2 {[%clk 0:00:08]}  Qxd5 {[%clk 0:00:12]} 43. Rxd5 {[%clk 0:00:09]}  Kxd5 {[%clk 0:00:13]} 44. Ke3 {[%clk 0:00:10]}  b5 {[%clk 0:00:13]} 45. axb5 {[%clk 0:00:10]}  axb5 {[%clk 0:00:13]} 0-1


[Site "https://www.chess.com"]

[Event "Titled Tuesday Blitz April 25 Late 2023"]
[White "Bitoon, Richard"]
[Black "Shivakumar, Shawnak"]
[WhiteFideId "5201110"]
[BlackFideId "30940192"]
[WhiteElo "2374"]
[BlackElo "2089"]
[Result "0-1"]
[Round "05"]
[TimeControl "180+2"]
[Date "2023.04.25"]
[WhiteClock "0:00:02"]
[BlackClock "0:01:56"]

1. e4 {[%clk 0:02:08]}  c5 {[%clk 0:02:57]} 2. c3 {[%clk 0:02:09]}  Nf6 {[%clk 0:02:55]} 3. e5 {[%clk 0:02:09]}  Nd5 {[%clk 0:02:56]} 4. d4 {[%clk 0:02:10]}  cxd4 {[%clk 0:02:54]} 5. Nf3 {[%clk 0:02:11]}  Nc6 {[%clk 0:02:52]} 6. Bc4 {[%clk 0:02:11]}  e6 {[%clk 0:02:50]} 7. O-O {[%clk 0:02:11]}  dxc3 {[%clk 0:02:48]} 8. Bxd5 {[%clk 0:02:11]}  exd5 {[%clk 0:02:48]} 9. Nxc3 {[%clk 0:02:12]}  d6 {[%clk 0:02:45]} 10. Bg5 {[%clk 0:02:05]}  Be7 {[%clk 0:02:44]} 11. Bxe7 {[%clk 0:02:00]}  Nxe7 {[%clk 0:02:45]} 12. exd6 {[%clk 0:01:36]}  Qxd6 {[%clk 0:02:46]} 13. Nb5 {[%clk 0:01:35]}  Qb6 {[%clk 0:02:44]} 14. Qe2 {[%clk 0:01:21]}  O-O {[%clk 0:02:43]} 15. Nxa7 {[%clk 0:00:57]}  Rxa7 {[%clk 0:02:36]} 16. Qxe7 {[%clk 0:00:57]}  Qxb2 {[%clk 0:02:36]} 17. a4 {[%clk 0:00:34]}  Bf5 {[%clk 0:02:33]} 18. Qc5 {[%clk 0:00:30]}  Rfa8 {[%clk 0:02:25]} 19. Qxd5 {[%clk 0:00:30]}  Ra5 {[%clk 0:02:25]} 20. Qd6 {[%clk 0:00:25]}  Be4 {[%clk 0:02:22]} 21. Rad1 {[%clk 0:00:18]}  h6 {[%clk 0:02:17]} 22. Nd2 {[%clk 0:00:10]}  Bd5 {[%clk 0:02:13]} 23. Rfe1 {[%clk 0:00:06]}  Kh7 {[%clk 0:02:09]} 24. Nf1 {[%clk 0:00:06]}  Bc6 {[%clk 0:02:07]} 25. Qd3+ {[%clk 0:00:05]}  g6 {[%clk 0:02:06]} 26. Rd2 {[%clk 0:00:04]}  Qf6 {[%clk 0:02:05]} 27. Ne3 {[%clk 0:00:04]}  Rxa4 {[%clk 0:02:03]} 28. Rde2 {[%clk 0:00:04]}  Ra3 {[%clk 0:02:02]} 29. Qc4 {[%clk 0:00:04]}  R8a4 {[%clk 0:02:00]} 30. Qc5 {[%clk 0:00:04]}  Ra2 {[%clk 0:02:00]} 31. Ng4 {[%clk 0:00:02]}  Rxg4 {[%clk 0:01:58]} 32. Rxa2 {[%clk 0:00:02]}  Bxg2 {[%clk 0:01:56]} 0-1


[Site "https://www.chess.com"]

[Event "Titled Tuesday Blitz April 25 Late 2023"]
[White "Goltsev, Dmitry"]
[Black "Rosen, Eric"]
[WhiteFideId "24176710"]
[BlackFideId "2032562"]
[WhiteElo "2336"]
[BlackElo "2331"]
[Result "1/2-1/2"]
[Round "05"]
[TimeControl "180+2"]
[Date "2023.04.25"]
[WhiteClock "0:00:04"]
[BlackClock "0:00:07"]

1. e4 {[%clk 0:02:59]}  c5 {[%clk 0:02:57]} 2. Nf3 {[%clk 0:02:59]}  Nc6 {[%clk 0:02:56]} 3. d4 {[%clk 0:03:00]}  cxd4 {[%clk 0:02:57]} 4. Nxd4 {[%clk 0:03:00]}  g6 {[%clk 0:02:55]} 5. Nc3 {[%clk 0:02:57]}  Bg7 {[%clk 0:02:53]} 6. Be3 {[%clk 0:02:56]}  Nf6 {[%clk 0:02:52]} 7. Be2 {[%clk 0:02:56]}  O-O {[%clk 0:02:52]} 8. O-O {[%clk 0:02:55]}  d5 {[%clk 0:02:50]} 9. exd5 {[%clk 0:02:55]}  Nb4 {[%clk 0:02:50]} 10. Nf3 {[%clk 0:02:47]}  Nbxd5 {[%clk 0:02:48]} 11. Nxd5 {[%clk 0:02:48]}  Qxd5 {[%clk 0:02:43]} 12. c4 {[%clk 0:02:45]}  Qa5 {[%clk 0:02:36]} 13. h3 {[%clk 0:02:42]}  Rd8 {[%clk 0:02:29]} 14. Qb3 {[%clk 0:02:39]}  b6 {[%clk 0:02:23]} 15. Rad1 {[%clk 0:02:29]}  Bb7 {[%clk 0:02:23]} 16. Rxd8+ {[%clk 0:02:16]}  Rxd8 {[%clk 0:02:24]} 17. Rd1 {[%clk 0:02:16]}  Rxd1+ {[%clk 0:02:14]} 18. Qxd1 {[%clk 0:02:16]}  Kf8 {[%clk 0:01:09]} 19. Qd8+ {[%clk 0:02:07]}  Ne8 {[%clk 0:01:10]} 20. c5 {[%clk 0:01:46]}  Bc6 {[%clk 0:00:40]} 21. Qc8 {[%clk 0:01:06]}  Qa4 {[%clk 0:00:26]} 22. Ng5 {[%clk 0:00:51]}  h6 {[%clk 0:00:24]} 23. b3 {[%clk 0:00:35]}  Qxa2 {[%clk 0:00:11]} 24. Nh7+ {[%clk 0:00:14]}  Kg8 {[%clk 0:00:11]} 25. Qxc6 {[%clk 0:00:15]}  Qxe2 {[%clk 0:00:08]} 26. Qxe8+ {[%clk 0:00:14]}  Kxh7 {[%clk 0:00:09]} 27. c6 {[%clk 0:00:13]}  Qe1+ {[%clk 0:00:02]} 28. Kh2 {[%clk 0:00:13]}  Qc3 {[%clk 0:00:02]} 29. Qd7 {[%clk 0:00:12]}  Be5+ {[%clk 0:00:02]} 30. g3 {[%clk 0:00:13]}  Bd6 {[%clk 0:00:02]} 31. b4 {[%clk 0:00:09]}  b5 {[%clk 0:00:02]} 32. Bxa7 {[%clk 0:00:08]}  h5 {[%clk 0:00:02]} 33. Be3 {[%clk 0:00:08]}  h4 {[%clk 0:00:02]} 34. Bf4 {[%clk 0:00:03]}  hxg3+ {[%clk 0:00:03]} 35. Bxg3 {[%clk 0:00:03]}  Bxg3+ {[%clk 0:00:03]} 36. fxg3 {[%clk 0:00:03]}  Qc2+ {[%clk 0:00:03]} 37. Kg1 {[%clk 0:00:04]}  Qc1+ {[%clk 0:00:03]} 38. Kf2 {[%clk 0:00:05]}  Qc2+ {[%clk 0:00:04]} 39. Ke3 {[%clk 0:00:05]}  Qc3+ {[%clk 0:00:04]} 40. Ke4 {[%clk 0:00:04]}  Qc4+ {[%clk 0:00:04]} 41. Ke3 {[%clk 0:00:04]}  Qc3+ {[%clk 0:00:04]} 42. Ke2 {[%clk 0:00:05]}  Qc2+ {[%clk 0:00:04]} 43. Kf3 {[%clk 0:00:05]}  Qc3+ {[%clk 0:00:04]} 44. Ke2 {[%clk 0:00:03]}  Qc2+ {[%clk 0:00:04]} 45. Ke1 {[%clk 0:00:02]}  Qc3+ {[%clk 0:00:05]} 46. Kf2 {[%clk 0:00:02]}  Qc2+ {[%clk 0:00:05]} 47. Kf3 {[%clk 0:00:03]}  Qc3+ {[%clk 0:00:05]} 48. Kg2 {[%clk 0:00:04]}  Qc2+ {[%clk 0:00:06]} 49. Kf1 {[%clk 0:00:04]}  Qc1+ {[%clk 0:00:06]} 50. Ke2 {[%clk 0:00:04]}  Qc2+ {[%clk 0:00:07]} 1/2-1/2


[Site "https://www.chess.com"]

[Event "Titled Tuesday Blitz April 25 Late 2023"]
[White "Przybylski, Wojciech"]
[Black "Yanchenko, Roman"]
[WhiteFideId "1117599"]
[BlackFideId "4137329"]
[WhiteElo "2222"]
[BlackElo "2491"]
[Result "1-0"]
[Round "05"]
[TimeControl "180+2"]
[Date "2023.04.25"]
[WhiteClock "0:00:18"]
[BlackClock "0:00:07"]

1. e4 {[%clk 0:03:00]}  e6 {[%clk 0:02:59]} 2. d4 {[%clk 0:02:59]}  d5 {[%clk 0:03:00]} 3. Nc3 {[%clk 0:02:59]}  Bb4 {[%clk 0:03:00]} 4. a3 {[%clk 0:02:59]}  Bxc3+ {[%clk 0:03:00]} 5. bxc3 {[%clk 0:03:00]}  dxe4 {[%clk 0:02:51]} 6. Qg4 {[%clk 0:02:59]}  Nf6 {[%clk 0:02:51]} 7. Qxg7 {[%clk 0:02:59]}  Rg8 {[%clk 0:02:52]} 8. Qh6 {[%clk 0:02:59]}  c5 {[%clk 0:02:52]} 9. Ne2 {[%clk 0:02:58]}  Rg6 {[%clk 0:02:47]} 10. Qe3 {[%clk 0:02:57]}  Qa5 {[%clk 0:02:43]} 11. Bd2 {[%clk 0:02:50]}  Qa4 {[%clk 0:02:42]} 12. Ra2 {[%clk 0:02:46]}  Nc6 {[%clk 0:02:39]} 13. dxc5 {[%clk 0:02:42]}  Nd5 {[%clk 0:02:37]} 14. Qh3 {[%clk 0:02:39]}  Qc4 {[%clk 0:02:35]} 15. Rb2 {[%clk 0:02:34]}  Qxc5 {[%clk 0:02:35]} 16. Qxh7 {[%clk 0:02:16]}  Qxa3 {[%clk 0:02:35]} 17. Qh8+ {[%clk 0:02:15]}  Kd7 {[%clk 0:02:18]} 18. Rb1 {[%clk 0:02:12]}  b6 {[%clk 0:02:08]} 19. Nd4 {[%clk 0:01:52]}  Bb7 {[%clk 0:01:48]} 20. Qh7 {[%clk 0:01:48]}  Qf8 {[%clk 0:01:48]} 21. Bb5 {[%clk 0:01:43]}  e3 {[%clk 0:01:28]} 22. Bxe3 {[%clk 0:01:37]}  Nxc3 {[%clk 0:01:13]} 23. Nxc6 {[%clk 0:01:26]}  Bxc6 {[%clk 0:01:10]} 24. Bxc6+ {[%clk 0:01:27]}  Kxc6 {[%clk 0:01:10]} 25. Rb3 {[%clk 0:01:25]}  Nd5 {[%clk 0:01:00]} 26. Qh4 {[%clk 0:01:19]}  Kb7 {[%clk 0:00:43]} 27. c4 {[%clk 0:01:11]}  Ne7 {[%clk 0:00:43]} 28. Qe4+ {[%clk 0:01:09]}  Nc6 {[%clk 0:00:43]} 29. c5 {[%clk 0:01:07]}  f5 {[%clk 0:00:32]} 30. Qf3 {[%clk 0:00:52]}  Qg7 {[%clk 0:00:22]} 31. O-O {[%clk 0:00:49]}  Rg8 {[%clk 0:00:19]} 32. g3 {[%clk 0:00:47]}  Qe5 {[%clk 0:00:15]} 33. cxb6 {[%clk 0:00:45]}  a5 {[%clk 0:00:15]} 34. Rc1 {[%clk 0:00:42]}  Qe4 {[%clk 0:00:14]} 35. Qxe4 {[%clk 0:00:41]}  fxe4 {[%clk 0:00:15]} 36. Rbc3 {[%clk 0:00:41]}  e5 {[%clk 0:00:15]} 37. h4 {[%clk 0:00:39]}  Rd8 {[%clk 0:00:12]} 38. h5 {[%clk 0:00:37]}  Re6 {[%clk 0:00:12]} 39. h6 {[%clk 0:00:37]}  Rd7 {[%clk 0:00:12]} 40. g4 {[%clk 0:00:32]}  Rg6 {[%clk 0:00:11]} 41. g5 {[%clk 0:00:31]}  Rd8 {[%clk 0:00:10]} 42. Kg2 {[%clk 0:00:28]}  Rh8 {[%clk 0:00:09]} 43. Kh3 {[%clk 0:00:27]}  Nd4 {[%clk 0:00:08]} 44. Rc5 {[%clk 0:00:22]}  Nf5 {[%clk 0:00:04]} 45. Rxe5 {[%clk 0:00:21]}  Nxe3 {[%clk 0:00:04]} 46. fxe3 {[%clk 0:00:20]}  Kxb6 {[%clk 0:00:05]} 47. Kh4 {[%clk 0:00:20]}  a4 {[%clk 0:00:03]} 48. Kh5 {[%clk 0:00:20]}  Rd6 {[%clk 0:00:04]} 49. Ra1 {[%clk 0:00:19]}  Rd2 {[%clk 0:00:04]} 50. Rxa4 {[%clk 0:00:18]}  Rh2+ {[%clk 0:00:05]} 51. Kg6 {[%clk 0:00:18]}  Rg8+ {[%clk 0:00:05]} 52. Kh7 {[%clk 0:00:17]}  Rc8 {[%clk 0:00:05]} 53. Raxe4 {[%clk 0:00:17]}  Rc6 {[%clk 0:00:06]} 54. Re6 {[%clk 0:00:17]}  Kc5 {[%clk 0:00:05]} 55. Rxc6+ {[%clk 0:00:17]}  Kxc6 {[%clk 0:00:06]} 56. g6 {[%clk 0:00:17]}  Kd5 {[%clk 0:00:07]} 57. Rf4 {[%clk 0:00:18]}  Ke5 {[%clk 0:00:07]} 58. g7 {[%clk 0:00:18]} 1-0


[Site "https://www.chess.com"]

[Event "Titled Tuesday Blitz April 25 Late 2023"]
[White "Javakhadze, Zurab"]
[Black "Sztokbant, Bernardo Vainzoff"]
[WhiteFideId "13603647"]
[BlackFideId "2115956"]
[WhiteElo "2381"]
[BlackElo "2222"]
[Result "1-0"]
[Round "05"]
[TimeControl "180+2"]
[Date "2023.04.25"]
[WhiteClock "0:00:16"]
[BlackClock "0:00:20"]

1. d4 {[%clk 0:03:00]}  d5 {[%clk 0:02:31]} 2. c4 {[%clk 0:03:01]}  dxc4 {[%clk 0:02:29]} 3. e3 {[%clk 0:03:00]}  e5 {[%clk 0:02:29]} 4. Bxc4 {[%clk 0:03:00]}  exd4 {[%clk 0:02:29]} 5. exd4 {[%clk 0:03:01]}  Nf6 {[%clk 0:02:29]} 6. Nf3 {[%clk 0:03:01]}  Bb4+ {[%clk 0:02:30]} 7. Nc3 {[%clk 0:03:01]}  O-O {[%clk 0:02:30]} 8. O-O {[%clk 0:03:02]}  Nc6 {[%clk 0:02:28]} 9. Bg5 {[%clk 0:02:58]}  Be7 {[%clk 0:02:26]} 10. h3 {[%clk 0:02:54]}  h6 {[%clk 0:02:26]} 11. Bf4 {[%clk 0:02:53]}  Bd6 {[%clk 0:02:25]} 12. Ne5 {[%clk 0:02:53]}  Ne7 {[%clk 0:02:05]} 13. Qb3 {[%clk 0:02:49]}  Qe8 {[%clk 0:02:04]} 14. Rfe1 {[%clk 0:02:36]}  Bxe5 {[%clk 0:02:04]} 15. Bxe5 {[%clk 0:02:11]}  Nh7 {[%clk 0:02:05]} 16. Nb5 {[%clk 0:01:59]}  Qc6 {[%clk 0:01:54]} 17. Nxc7 {[%clk 0:01:51]}  Bxh3 {[%clk 0:01:36]} 18. gxh3 {[%clk 0:01:30]}  Ng5 {[%clk 0:01:36]} 19. d5 {[%clk 0:01:31]}  Qg6 {[%clk 0:01:33]} 20. Kf1 {[%clk 0:01:16]}  Rac8 {[%clk 0:01:28]} 21. d6 {[%clk 0:01:15]}  Nc6 {[%clk 0:01:18]} 22. Bg3 {[%clk 0:01:09]}  Rcd8 {[%clk 0:01:04]} 23. Qxb7 {[%clk 0:01:04]}  Nd4 {[%clk 0:00:57]} 24. Qd5 {[%clk 0:00:54]}  Nc2 {[%clk 0:00:52]} 25. Bd3 {[%clk 0:00:50]}  Qh5 {[%clk 0:00:45]} 26. Bxc2 {[%clk 0:00:49]}  Qxh3+ {[%clk 0:00:45]} 27. Kg1 {[%clk 0:00:47]}  Qg4 {[%clk 0:00:41]} 28. Qf5 {[%clk 0:00:35]}  Nf3+ {[%clk 0:00:37]} 29. Kh1 {[%clk 0:00:30]}  Qxf5 {[%clk 0:00:33]} 30. Bxf5 {[%clk 0:00:30]}  Nxe1 {[%clk 0:00:34]} 31. Rxe1 {[%clk 0:00:30]}  g6 {[%clk 0:00:35]} 32. Bc2 {[%clk 0:00:27]}  Rd7 {[%clk 0:00:35]} 33. Bb3 {[%clk 0:00:27]}  Rfd8 {[%clk 0:00:33]} 34. Nd5 {[%clk 0:00:27]}  Rxd6 {[%clk 0:00:32]} 35. Bxd6 {[%clk 0:00:27]}  Rxd6 {[%clk 0:00:33]} 36. Re7 {[%clk 0:00:26]}  a5 {[%clk 0:00:26]} 37. a4 {[%clk 0:00:23]}  Kf8 {[%clk 0:00:24]} 38. Ra7 {[%clk 0:00:22]}  Re6 {[%clk 0:00:21]} 39. Rxa5 {[%clk 0:00:21]}  Re2 {[%clk 0:00:21]} 40. Kg2 {[%clk 0:00:17]}  Rxb2 {[%clk 0:00:22]} 41. Rb5 {[%clk 0:00:18]}  Rxb3 {[%clk 0:00:20]} 42. Rxb3 {[%clk 0:00:16]} 1-0


[Site "https://www.chess.com"]